{"text_format":"1","workbook":"xlsx","n_sheets":1,"sheets":["Übersicht Personalausgaben"],"not_rendered":{"charts":0,"images":1,"macros":0,"external_links":0,"defined_names":1,"comments":0,"pivot_tables":0},"unopened":[],"bounds":{"document_bytes":16777216,"sheet_cells":100000,"rows_first":2000,"rows_last":500,"rows_between":2000,"halvings":0,"cell_chars":16384,"cell_head_chars":4096},"cells_cut":0,"cells_raw":0,"read":"whole","date_system":"1900"}

{"sheet":"Übersicht Personalausgaben","index":0,"n_rows":96,"n_cols":10,"rows_kept":96,"cut":false,"hidden":false,"merged":[[51,1,51,8],[42,1,42,8],[43,1,43,8],[44,1,44,8],[45,1,45,8],[46,1,46,8],[47,1,47,8],[48,1,48,8],[49,1,49,8],[50,1,50,8],[3,8,3,9],[4,8,4,9],[6,1,6,10],[7,8,7,9],[8,1,8,3],[9,1,9,5],[21,1,21,3],[21,7,21,10],[58,1,58,9],[25,1,25,9],[26,2,26,3],[26,4,26,6],[26,7,26,8],[10,1,10,3],[10,5,10,9],[12,1,12,3],[12,5,12,9],[18,1,18,9],[20,1,20,3],[20,7,20,9],[14,1,14,3],[14,5,14,9],[16,1,16,3],[16,5,16,9],[24,1,24,8],[31,1,31,8],[32,2,32,3],[32,4,32,6],[32,7,32,8],[33,2,33,3],[33,4,33,6],[33,7,33,8],[27,1,27,8],[28,2,28,3],[28,4,28,6],[28,7,28,8],[29,1,29,8],[30,2,30,3],[30,4,30,6],[30,7,30,8],[36,2,36,3],[36,4,36,6],[36,7,36,8],[37,2,37,3],[37,4,37,6],[37,7,37,8],[34,2,34,3],[34,4,34,6],[34,7,34,8],[35,2,35,3],[35,4,35,6],[35,7,35,8],[40,2,40,3],[40,4,40,6],[40,7,40,8],[41,2,41,3],[41,4,41,6],[41,7,41,8],[38,2,38,3],[38,4,38,6],[38,7,38,8],[39,2,39,3],[39,4,39,6],[39,7,39,8],[56,1,56,9],[53,1,53,9],[57,1,57,9],[59,1,59,3],[54,1,54,8],[67,5,67,6],[68,5,68,6],[69,5,69,6],[70,5,70,6],[71,5,71,6],[72,5,72,6],[60,5,60,6],[61,1,61,9],[62,5,62,6],[63,5,63,6],[65,5,65,6],[66,5,66,6],[84,5,84,7],[79,3,79,4],[79,5,79,7],[80,3,80,4],[80,5,80,7],[81,3,81,4],[81,5,81,7],[73,5,73,6],[74,5,74,6],[76,1,76,3],[77,3,77,4],[77,5,77,7],[78,3,78,4],[78,5,78,7],[3,5,3,6],[4,5,4,6],[91,3,91,4],[91,5,91,7],[92,3,92,4],[92,5,92,7],[95,4,95,8],[88,3,88,4],[88,5,88,7],[89,3,89,4],[89,5,89,7],[90,3,90,4],[90,5,90,7],[85,3,85,4],[85,5,85,7],[86,3,86,4],[86,5,86,7],[87,3,87,4],[87,5,87,7],[82,3,82,4],[82,5,82,7],[83,3,83,4],[83,5,83,7],[84,3,84,4]]}
[]
[]
[]
[]
[null,null,"                   "]
[]
[null,"Übersicht über Personalausgaben als Anlage zum Verwendungsnachweis\n\nim Förderbereich Wirtschaft"]
[null,null,null,null,null,null,null,null,"Stand: August 2016"]
[null,"Für den Abrechnungszeitraum von:",null,null,null,null,null," bis "]
[]
[null,"Name des Zuwendungsempfängers"]
[]
[null,"Kurzname des Projekts \n(siehe Projektantrag Nr. 11)"]
[]
[null,"Aktenzeichen des Ministeriums für Wirtschaft, Arbeit und Wohnungsbau (siehe Projektantrag Nr. 1)"]
[]
[null,"Vorgangsnummer der L-Bank für das Vorhaben \n(siehe Bewilligungsbescheid)"]
[]
[null,"Hinweise: \n\n> Bitte füllen Sie dieses Dokument vollständig aus und unterschreiben dieses anschließend.\n\n> Beschäftigungsumfang: Bitte geben Sie zunächst für das interne Personal den geleisteten Beschäftigungsumfang beim Träger insgesamt und dann den Beschäftigungsumfang anteilig davon im ESF-Projekt an.\n                                           \n> Bei Änderungen des Beschäftigungsumfangs insgesamt oder im ESF-Projekt einer/eines Beschäftigten während des Abrechnungszeitraums verwenden Sie bitte je Konstellation eine separate Zeile.\n\n> Die Angaben zu Name der/des Beschäftigten, Beschäftigungsumfang insgesamt und im ESF-Projekt werden automatisch an die entsprechenden Stellen in der nachfolgenden Übersicht \"Übersicht über Personalausgaben\" übernommen. Bitte füllen Sie die noch offenen Felder (weißen Felder) aus.\n\n> Bitte lassen Sie zudem von jeder/m Projektmitarbeitenden (internes Personal) jeweils den Vordruck \"Aufgaben im Abrechnungszeitraum\" ausfüllen (gesondertes Dokument)."]
[]
[]
[null,"Ort, Datum",null,null,null,null,null,"Name und Unterschrift der vertretungsberechtigten Person/en"]
[]
[]
[null,"Beschäftigungsumfang des internen Projektpersonals im Abrechnungszeitraum"]
[null,"Wir bestätigen, dass für die Durchführung der oben genannten Fördermaßnahme folgende Mitarbeiter/innen (internes Personal) im Abrechnungszeitraum mindestens in dem angegebenen \nUmfang tätig waren:"]
[null,"\nlfd. Nr.","\nName der/des Beschäftigten\n(Name, Vorname) ",null,"\nBeschäftigungsumfang insgesamt beim Träger\nin Prozent",null,null,"\ndavon im beantragten ESF-Projekt tätig\n in Prozent"]
[null,"Beispiel 1 (B 1): Der/die Mitarbeiter/in war während eines Kalenderjahres (Abrechnungszeitraum 12 Monate) zu 75% beim Träger beschäftigt. Von seiner/ihrer Gesamtbeschäftigung entfielen 50 % auf Tätigkeiten im ESF-Projekt; in den restlichen 50 % war der/die Mitarbeiter/in beim Träger für andere nicht projektbezogene Tätigkeiten eingesetzt."]
[null,"B 1","Name, Vorname",null,0.75,null,null,0.5]
[null,"Beispiel 2 (B 2): Der/die Mitarbeiter/in war im Abrechnungszeitraum von 12 Monaten lediglich 6 Monate zu 50% beim Träger beschäftigt. Er/sie arbeitete ausschließlich, also zu 100% für das ESF-Projekt."]
[null,"B 2","Name, Vorname",null,0.5,null,null,1]
[]
[null,"1."]
[null,"2."]
[null,"3."]
[null,"4."]
[null,"5."]
[null,"6."]
[null,"7."]
[null,"8."]
[null,"9."]
[null,"10."]
[null,{"$f":"IF(OR(E33>100%,H33>100%),\"Sie haben einen Beschäftigungsumfang von mehr als 100% eingegeben. Bitte überprüfen Sie Ihre Angaben.\",\" \")","v":" "}]
[null,{"$f":"IF(OR(E34>100%,H34>100%),\"Sie haben einen Beschäftigungsumfang von mehr als 100% eingegeben. Bitte überprüfen Sie Ihre Angaben.\",\" \")","v":" "}]
[null," "]
[null," "]
[null," "]
[null," "]
[null," "]
[null," "]
[null," "]
[null," "]
[]
[]
[null,"Übersicht über Personalausgaben im Abrechnungszeitraum"]
[]
[null,"Hinweis: \nFörderfähig sind direkte Personalausgaben. Direkte Personalausgaben sind:"]
[">","für internes Personal: alle Leistungen, die aufgrund eines Arbeitsvertrags vergütet werden einschließlich Sozialabgaben und sonstige Arbeitgeberanteile. Sonderzahlungen / Einmalzahlungen wie z.B. Urlaubs- oder Weihnachtsgeld sind förderfähig, soweit sie in der Projektlaufzeit ausgezahlt werden."]
[">","für externe Mitarbeiter/innen: Honorarausgaben, die auf Stunden- oder Tagessätzen basieren. Werden zusätzlich Ausgaben bspw. Reisekosten oder Spesen berechnet, zählen diese nicht zu den direkten Personalausgaben."]
[null,"A - internes Personal"]
[null,"lfd. Nr.","Funktion/Aufgaben ","Name der/des Beschäftigten ","Tarifvertrag (gängige Abkürzung) und tarifliche Eingruppierung","Personalausgaben insgesamt in und außerhalb des Projekts inkl. Sozialabgaben und sonstige Arbeitgeberanteile im Abrechnungszeitraum\n(in EURO)",null,"Beschäftigungsumfang insgesamt beim Träger \n(in Prozent)","Beschäftigungsumfang im ESF-Projekt (in Bezug auf die Gesamtbeschäftigung beim Träger) \n(in Prozent)","Personalausgaben inkl. Sozialabgaben und sonstige Arbeitgeber-anteile, die auf das ESF-Projekt entfallen\n(in EURO)"]
[null,"Beispiele: Im Beispiel 1 sind für den Abrechnungszeitraum von 12 Monaten 45.000,00 € förderfähige Personalausgaben laut Buchhaltungsdaten angefallen. Im Beispiel 2 sind für eine lediglich 6-monatige Beschäftigung während des Abrechnungszeitraums 15.000,00 € förderfähige Personalausgaben laut Buchhaltungsdaten angefallen."]
[null,"B 1","Ausbilder/in","Name, Vorname","TVöD E 12",45000,null,0.75,0.5,{"$f":"IF(F63>0, I63*F63,\"\")","v":22500}]
[null,"B 2","Berufswerber/in","Name, Vorname","TVöD E 12",15000,null,0.5,1,{"$f":"IF(F64>0, I64*F64,\"\")","v":15000}]
[]
[null,"1.",null,{"$f":"IF(C33>0,C33,\" \")","v":" "},null,null,null,{"$f":"IF(E33>0,E33,\" \")","v":" "},{"$f":"IF(H33>0,H33,\" \")","v":" "},{"$f":"IF(F66>0, I66*F66,\"\")","v":""}]
[null,"2.",null," ",null,null,null," "," ",""]
[null,"3.",null," ",null,null,null," "," ",""]
[null,"4.",null," ",null,null,null," "," ",""]
[null,"5.",null," ",null,null,null," "," ",""]
[null,"6.",null," ",null,null,null," "," ",""]
[null,"7.",null," ",null,null,null," "," ",""]
[null,"8.",null," ",null,null,null," "," ",""]
[null,"9.",null," ",null,null,null," "," ",""]
[null,"10.",null," ",null,null,null," "," ",""]
[null,null,null,null,null,null,null,null,"Summe internes Personal:",{"$f":"SUM(J66:J75)","v":0}]
[null,"B - externes Personal"]
[null,"lfd. Nr.","Funktion/Aufgaben ","Name der/des Beschäftigten",null,"Honorar pro Stunde \n(in EURO)",null,null,"Beschäftigungsumfang im ESF-Projekt (Stunden insgesamt)","Honoraraufwendungen, die auf das ESF-Projekt entfallen \n(in EURO)"]
[null,"1.",null,null,null,null,null,null,null,{"$f":"IF(F79>0, I79*F79,\"\")","v":""}]
[null,"2.",null,null,null,null,null,null,null,""]
[null,"3.",null,null,null,null,null,null,null,""]
[null,"4.",null,null,null,null,null,null,null,""]
[null,"5.",null,null,null,null,null,null,null,""]
[null,"6.",null,null,null,null,null,null,null,""]
[null,"7.",null,null,null,null,null,null,null,""]
[null,"8.",null,null,null,null,null,null,null,""]
[null,"9.",null,null,null,null,null,null,null,""]
[null,"10.",null,null,null,null,null,null,null,""]
[null,"11.",null,null,null,null,null,null,null,""]
[null,"12.",null,null,null,null,null,null,null,""]
[null,"13.",null,null,null,null,null,null,null,""]
[null,"14.",null,null,null,null,null,null,null,""]
[null,"15.",null,null,null,null,null,null,null,""]
[null,null,null,null,null,null,null,null,"Summe externes Personal:",{"$f":"SUM(J79:J93)","v":0}]
[]
[null,null,null,null,"Gesamtpersonalausgaben (Abrechnungszeitraum):",null,null,null,null,{"$f":"ROUND(J94+J76,2)","v":0}]